Cogmind - Beta 10.2 @@@ ROGUE MODE // 2021.01.30 @ 12:59:05 Player: Exp. Geonium Core Result: Destroyed by S-10 Pest with Light Assault Rifle Performance ------------- Evolutions (1) 500 Regions Visited (2) 400 Robots Destroyed (9) 45 Value Destroyed (198) 198 Prototype IDs (1) 20 Alien Tech Used (0) 0 Bonus (0) 0 TOTAL SCORE: 1163 Bonus ------- None Cogmind --------- Core Integrity 0/400 Matter 295/300 Energy 100/100 System Corruption 1% Temperature Cool (0) Movement Core (800) Ox15 Location -9/Materials Parts ------- > --- POWER (1) -------- (None) > --- PROPULSION (2) --- (None) > --- UTILITY (4) ------ Large Storage Unit Large Storage Unit Large Storage Unit > --- WEAPON (2) ------- (None) > --- INVENTORY (22) --- Heavy Ion Engine Heavy Ion Engine Small Storage Unit Peak State ------------ > --- POWER ------------ Heavy Ion Engine > --- PROPULSION ------- Wheel Wheel > --- UTILITY ---------- Large Storage Unit Large Storage Unit Large Storage Unit Light Armor Plating > --- WEAPON ----------- Light Assault Rifle Light Assault Rifle > --- INVENTORY -------- Heavy Ion Engine Heavy Ion Engine Wheel Wheel Small Storage Unit Beam Rifle [Rating: 12] Favorites ----------- Power Heavy Ion Engine Engine Heavy Ion Engine Propulsion Wheel Wheel Wheel Utility Large Storage Unit Storage Large Storage Unit Protection Light Armor Plating Weapon Light Assault Rifle Energy Gun Small Laser Ballistic Gun Light Assault Rifle Build | -11 -10 -9 ------- Run | Scr Mat Mat Slots Evolved 2 | . . 2 Power . | . . . Propulsion . | . . . Utility 2 | . . 2 Weapon . | . . . Parts Attached 15 | 6 1 8 Power 2 | 1 . 1 Engine 2 | 1 . 1 Core . | . . . Reactor . | . . . Propulsion 4 | 2 . 2 Treads . | . . . Leg . | . . . Wheel 4 | 2 . 2 Hover . | . . . Flight . | . . . Utility 5 | 1 1 3 Device . | . . . Storage 4 | 1 1 2 Processor . | . . . Hackware . | . . . Protection 1 | . . 1 Artifact . | . . . Weapon 4 | 2 . 2 Energy Gun 2 | 1 . 1 Energy Cannon . | . . . Ballistic Gun 2 | 1 . 1 Ballistic Cannon . | . . . Launcher . | . . . Special Weapon . | . . . Impact Weapon . | . . . Slashing Weapon . | . . . Piercing Weapon . | . . . Special Melee Weapon . | . . . Unidentified Prototypes 1 | . . 1 Parts Lost 10 | . . 10 Power 1 | . . 1 Propulsion 4 | . . 4 Utility 1 | . . 1 Weapon 4 | . . 4 Highest Loss Streak 9 | . . 9 Average Slot Usage (%) 80 | . 98 75 Engine 10 | . 14 9 Wheel 20 | . 28 18 Storage 27 | . 26 27 Protection 1 | . . 1 Energy Gun 7 | . 14 5 Ballistic Gun 12 | . 14 11 Naked Turns . | . . . Heaviest Build 62 | 11 27 62 Greatest Support 20 | 20 20 20 Greatest Overweight (x) 15 | 1 1 15 Average Overweight (x) 1 | . . 1 Largest Inventory Capacity 24 | 6 12 24 Average Capacity 13 | 5 11 16 Most Carried 7 | 3 5 7 Average Carried 4 | 1 4 5 Final Capacity 22 | 6 12 22 Final Carried 5 | 3 5 3 Class Distribution -------------------- 74% | Mutant 25% | Hauler-Mutant Dominant Class ---------------- Mutant | -10/Materials Mutant | -9/Materials Resources | -11 -10 -9 ----------- Run | Scr Mat Mat Matter Collected 356 | 230 . 126 Remotely . | . . . Salvage Created 339 | 127 . 212 Parts 16 | 6 . 10 Haulers Intercepted . | . . . Recyclers Shooed . | . . . Parts Field Recycled . | . . . Retrieved Matter . | . . . Parts Self-Destructed . | . . . Prevented . | . . . Kills | -11 -10 -9 ------- Run | Scr Mat Mat Combat Hostiles Destroyed 6 | . . 6 Guns 6 | . . 6 Classes Destroyed 5 | 2 . 3 Tunneler 2 | 2 . . Recycler 1 | 1 . . Swarmer 2 | . . 2 Grunt 2 | . . 2 Sentry 2 | . . 2 Best Kill Streak 3 | 3 . 3 Combat Bots Only 3 | . . 3 Max Kills in Single Turn 1 | 1 . 1 Gunslinging . | . . . Exploded . | . . . Melee . | . . . Uniques/NPCs Destroyed . | . . . Combat | -11 -10 -9 -------- Run | Scr Mat Mat Damage Taken 1272 | . . 1272 Core 404 | . . 404 Absorbed by Shields . | . . . Core Remaining (%) 100 | 100 100 . Volleys Fired 51 | 15 . 36 Largest 2 | 2 . 2 Hottest 76 | 60 . 76 Shots Fired 88 | 30 . 58 Gun 88 | 30 . 58 Cannon . | . . . Launcher . | . . . Special . | . . . Kinetic 60 | 15 . 45 Thermal 28 | 15 . 13 Explosive . | . . . Electromagnetic . | . . . Robot Hit Streak 8 | 8 . 6 Robot Miss Streak 5 | 2 . 5 Penetration Max . | . . . Secondary Targets 1 | . . 1 Max Gunslinging Chain 1 | . . 1 Shots Hit Robots 60 | 22 . 38 Core Hits 18 | 6 . 12 Critical Hits 1 | . . 1 Critical Kills . | . . . Critical Parts Destroyed 1 | . . 1 Melee Attacks . | . . . Impact . | . . . Slashing . | . . . Piercing . | . . . Sneak Attacks . | . . . Combat Hostiles . | . . . Follow-up Attacks . | . . . Damage Inflicted 586 | 213 . 373 Guns 580 | 213 . 367 Cannons . | . . . Explosions . | . . . Melee . | . . . Ramming 6 | . . 6 Kinetic 325 | 94 . 231 Thermal 255 | 119 . 136 Explosive . | . . . Electromagnetic . | . . . Impact . | . . . Slashing . | . . . Piercing . | . . . Highest Corruption 1 | . . 1 Average Corruption 1 | . . 1 Corruption Purged . | . . . Overload Shots . | . . . Overflow Damage . | . . . Projectiles . | . . . Explosions . | . . . Melee . | . . . Knockbacks . | . . . Impact . | . . . Kinetic . | . . . Secondary . | . . . Self-Inflicted Damage 3 | . . 3 Shots . | . . . Rammed 1 | . . 1 Targets Rammed 1 | . . 1 Kicked . | . . . Crushed . | . . . Highest Temperature 130 | 60 . 130 Average Temperature 42 | 35 . 46 Received Heat Transfer 327 | . . 327 Siege Activations . | . . . Robots Corrupted . | . . . Combat Hostiles . | . . . Parts Fried . | . . . Impact Corruptions . | . . . Robots Melted . | . . . Combat Hostiles . | . . . Parts Melted . | . . . Heat Transferred 598 | 275 . 323 Parts Sabotaged . | . . . Parts Stolen . | . . . Parts Stripped . | . . . Power Chain Reactions . | . . . Missiles Intercepted . | . . . Alert | -11 -10 -9 ------- Run | Scr Mat Mat Peak Influence 175 | 15 39 175 Initial 16 | . 9 16 Average 51 | 5 12 76 Maximum Alert Level . | . . . Low Security (%) 100 | 100 100 100 Level 1 . | . . . Level 2 . | . . . Level 3 . | . . . Level 4 . | . . . Level 5 . | . . . High Security . | . . . Max Security . | . . . Squads Dispatched 2 | . . 2 Investigation 2 | . . 2 Extermination . | . . . Reinforcement . | . . . Assault . | . . . Garrison . | . . . Intercept . | . . . Construction Impeded . | . . . Haulers Reinforced . | . . . Stealth | -11 -10 -9 --------- Run | Scr Mat Mat Distress Signals 2 | . . 2 Communications Jammed . | . . . Distress Signals . | . . . Times Spotted 16 | . 2 14 Peak Tracking Total 7 | . 2 7 Tactical Retreats 2 | . 1 1 Traps | -11 -10 -9 ------- Run | Scr Mat Mat Traps Triggered 2 | . . 2 Indirectly . | . . . Trap Hack Attempts . | . . . Triggered . | . . . Disarmed . | . . . Reprogrammed . | . . . Reused . | . . . Traps Extracted . | . . . Installed . | . . . Triggered . | . . . Machines | -11 -10 -9 ---------- Run | Scr Mat Mat Machines Disabled . | . . . Max in Single Turn . | . . . Machines Sabotaged . | . . . Garrisons Compromised . | . . . Overloaded Fab Kills . | . . . Fab Network Shutdowns . | . . . Hacking | -11 -10 -9 --------- Run | Scr Mat Mat Machines Accessed 2 | . . 2 Terminals 2 | . . 2 Fabricators . | . . . Repair Stations . | . . . Recycling Units . | . . . Scanalyzers . | . . . Garrison Access . | . . . Total Hacks 4 | . . 4 Successful 1 | . . 1 Failed 3 | . . 3 Catastrophic . | . . . Database Lockouts . | . . . Manual 4 | . . 4 Terminals 4 | . . 4 Fabricators . | . . . Repair Stations . | . . . Recycling Units . | . . . Scanalyzers . | . . . Garrison Access . | . . . Terminal Hacks . | . . . Fabricator Hacks . | . . . Repair Station Hacks . | . . . Recycling Unit Hacks . | . . . Scanalyzer . | . . . Garrison Access Hacks . | . . . Unauthorized Hacks 1 | . . 1 Terminals 1 | . . 1 Botnet 1 | . . 1 Fabricators . | . . . Repair Stations . | . . . Recycling Units . | . . . Scanalyzers . | . . . Garrison Access . | . . . Data Cores Recovered . | . . . Used . | . . . Hacking Detections 2 | . . 2 Full Trace Events . | . . . Feedback Events . | . . . Feedback Blocked . | . . . Robot Schematics Acquired . | . . . Robots Built . | . . . Matter . | . . . Time . | . . . Total Robot Build Rating . | . . . Part Schematics Acquired . | . . . Parts Built . | . . . Matter . | . . . Time . | . . . Total Part Build Rating . | . . . Parts Repaired . | . . . Time . | . . . Parts Recycled . | . . . Recycled Matter . | . . . Retrieved Matter . | . . . Retrieved Components . | . . . Parts Scanalyzed . | . . . Part Schematics Acquired . | . . . Parts Damaged . | . . . Bothacking | -11 -10 -9 ------------ Run | Scr Mat Mat Used RIF Installer . | . . . Robots Hacked . | . . . Non-combat . | . . . Combat . | . . . Robot Hacks Applied . | . . . Relay Couplers Released . | . . . Robots Rewired . | . . . Allies Hacked . | . . . Hacks Repelled . | . . . Allies | -11 -10 -9 -------- Run | Scr Mat Mat Total Allies . | . . . Largest Group . | . . . Highest-Rated Group . | . . . Highest-Rated Ally . | . . . Total Orders . | . . . Ally Attacks . | . . . Total Damage . | . . . Kills . | . . . Allies Corrupted . | . . . Allies Melted . | . . . Intel | -11 -10 -9 ------- Run | Scr Mat Mat Robot Analysis Total . | . . . Derelict Logs Recovered . | . . . Drone Launches . | . . . Drone Recoveries . | . . . Exploration | -11 -10 -9 ------------- Run | Scr Mat Mat Turns Passed 493 | 92 92 309 Spaces Moved 332 | 47 97 188 Core 4 | 1 . 3 Treads . | . . . Legs . | . . . Wheels 328 | 46 97 185 Hover . | . . . Flight . | . . . Fastest Speed 50 | 50 80 90 Average Speed 99 | 81 89 108 Slowest Speed 800 | 90 90 800 Overloaded Moves . | . . . Propulsion Burnouts . | . . . Robots Hopped . | . . . Cave-ins Triggered . | . . . Exploration Rate (%) 16 | 4 23 21 Regions Visited 2 Branch Regions . Pre-discovered Areas . | . . . Known Exits Taken . | . . . Unknown Exits Taken 2 | 1 1 . Scrap Searched . | . . . Spaces Dug . | . . . Terrain Destroyed . | . . . Melee . | . . . Projectile . | . . . AOE . | . . . Terrain Rammed . | . . . Walls Destroyed . | . . . Machines Disabled . | . . . Actions | -11 -10 -9 --------- Run | Scr Mat Mat Total 422 | 71 101 250 Wait 14 | . 2 12 Move 330 | 46 96 188 Hop . | . . . Pick Up 9 | 4 2 3 Fast Attach 8 | 5 1 2 Attach 7 | 1 . 6 Detach 1 | . . 1 Swap . | . . . Drop 1 | . . 1 Fire 51 | 15 . 36 Melee . | . . . Ram 1 | . . 1 Kick . | . . . Crush . | . . . Escape Stasis . | . . . Rewire . | . . . Trap . | . . . Miscellaneous . | . . . Route ------- -11/Scrapyard -10/Materials -9/Materials History --------- Turn | Location | Event 27 | -11/Scrapyard | Discovered new exit (range 12) 93 | -11/Scrapyard | Entered Materials 171 | -10/Materials | Discovered new exit (range 16) 185 | -10/Materials | Entered another Materials area 185 | -9/Materials | Evolved 2 slots: Utility x2 311 | -9/Materials | Build established: Mutant 480 | -9/Materials | Core integrity fell below 50% 489 | -9/Materials | Core integrity fell below 20% 494 | -9/Materials | Destroyed by S-10 Pest with Light Assault Rifle Last Messages --------------- 00422_ Lgt. Assault Rifle destroyed. 00423_ K-01 Serf collects debris. 00428_ Critical hit. 00428_ Lgt. Armor Plating destroyed. 00430_ K-01 Serf collects debris. 00432_ S-10 Pest destroyed. 00432_ Switching to secondary target: Y-45 Defender. 00443_ Y-45 Defender destroyed. 00443_ Beam Rifle destroyed. 00447_ Lgt. Assault Rifle destroyed. 00449_ Acquired 13 matter. 00449_ Wheel destroyed. 00450_ Slammed into S-10 Pest. 00450_ Destabilizing: System corrupted (+1). 00456_ Hvy. Ion Engine destroyed. 00472_ Triggered Alarm Trap. 00472_ An alarm sounds. 00472_ ALERT: Alarm triggered, dispatching investigation squad. 00473_ Wheel destroyed. 00494_ W-16 Scout sends out distress signal. Map ----- +----------------------------------------------------+ | ?????????????????????????????????????? | | ?????????????????????????????????????? | | ?????????????????????????????????????? | | ?????????????????????????????????????? | | ?????????????????????????????????????? | | ?????????????????????????????????????? | | ?????????????????????????????????????? | | ?????????????????????????????????????? | | ?????????????????????????????????????? | | ?????????????????????????????????????? | | ????????????? ?????????????????????? | | ????????????? #????????????????????? | | ????????????? #????????????????????? | | ????????????? ????????????????????? | | ????????????? ????????????????????? | | ????????????? ????????????????????? | | ????????????? #????????????????????? | | ????????????# #????????????????????? | | ????????????+ #????????????????????? | | ????????????# #????????????????????? | | ????????????# #????????????????????? | | ????????????# #????????????????????? | | ????????????# ##+####### ?????????? | | ????????????# ????????? | | ????????????# w ????????? | | ????????????#@ s ????????? | | ????????????# ##+###???????????????? | | ????????????# #????????????????????? | | ??????????### #????????????????????? | | ?????#+#+## #????????????????????? | | ?????# ##???????????????????? | | ?????# +???????????????????? | | ?????# "" ##???????????????????? | | ?????## "" #????????????????????? | | ??????# "T #????????????????????? | | ??????# "" s#????????????????????? | | ??????# "" YY######???????????????? | | ??????+ u #???????????????? | | ??????# ##### #????######?????? | | ??????###+######???# #???##!!!!##????? | | ??????????????????## ##???! !#????? | | ?????????????###### ####? !#???? | | ?????????????+ #?# #### | | ?????????????###### = ## #?# | | ????????????????####/### #?# | | ????????????????# = # #?# | | ????????????????# # #?# ##### | | ????????????????# # ### ###???? | | ????????????????# " "%+*# #???? | | ????????????????# "R"%#* #???? | +----------------------------------------------------+ Best States ------------- Heat Dissipation 28 Energy Generation 14 Energy Capacity 280 Matter Stores 300 Matter Capacity 300 Sight Range 16 Terrain Scan Density 10 Armor Coverage 150 Evasion (%) 44 Item Schematics ----------------- None Robot Schematics ------------------ None Fabricated ------------ Nothing Alien Tech Used ----------------- None Achievements -------------- None Challenges ------------ None Game ------ Seed MetafieldWeightNegator Manual? 0 Play Time 00:08:00 Cumulative 45.7 hours Start 2021.01.30 @ 12:54:16 End 2021.01.30 @ 12:59:05 Sessions 1 Manual Loads 0 Difficulty Rogue Special Mode None Game No. 74 Rogue 74 Adventurer 0 Explorer 0 Win Type - Total 1 Types 1/0/0/0/0/0/0/0/0 Lore% 33 Gallery% 47 Achievement% 41 Wizard Run 0 Options --------- ASCII 0 Keyboard 0 Movement Numpad Keybinds 0 Fullscreen 1 Font 18/SmallcapsGlow Map View 76x50 Tactical HUD 1 Map Filters NONE Filters NONE Steam 1 RUN: 2788bd87-1936-41e7-8926-eb34a58be5ba